[Event "December 19 Early 2023"]
[Site "https://www.chess.com"]
[Date "2023.12.19"]
[Round "8"]
[White "Tilahun , Abel Mathewos"]
[Black "Sarkar, Justin"]
[Result "1-0"]
[Board "178"]
[TimeControl "180+1"]
[WhiteFideId "15702391"]
[BlackFideId "2010011"]
[WhiteElo "1917"]
[BlackElo "2138"]
[WhiteTeam "ETH"]
[BlackTeam "USA"]
[WhiteClock "0:00:13"]
[BlackClock "0:00:00"]

1. d4 {[%clk 0:02:58]}  Nf6 {[%clk 0:02:31]} 2. c4 {[%clk 0:02:55]}  e6 {[%clk 0:02:30]} 3. Nf3 {[%clk 0:02:53]}  c6 {[%clk 0:02:30]} 4. Nc3 {[%clk 0:02:47]}  d5 {[%clk 0:02:27]} 5. e3 {[%clk 0:02:47]}  Nbd7 {[%clk 0:02:07]} 6. Bd3 {[%clk 0:02:47]}  dxc4 {[%clk 0:02:03]} 7. Bxc4 {[%clk 0:02:46]}  b5 {[%clk 0:02:02]} 8. Bd3 {[%clk 0:02:47]}  b4 {[%clk 0:02:02]} 9. Na4 {[%clk 0:02:43]}  c5 {[%clk 0:01:37]} 10. O-O {[%clk 0:02:37]}  Be7 {[%clk 0:01:27]} 11. e4 {[%clk 0:02:33]}  O-O {[%clk 0:01:08]} 12. Nxc5 {[%clk 0:02:29]}  Bxc5 {[%clk 0:01:02]} 13. dxc5 {[%clk 0:02:29]}  Nxc5 {[%clk 0:01:02]} 14. e5 {[%clk 0:02:20]}  Qxd3 {[%clk 0:00:55]} 15. exf6 {[%clk 0:02:15]}  Qxd1 {[%clk 0:00:42]} 16. Rxd1 {[%clk 0:02:16]}  gxf6 {[%clk 0:00:42]} 17. Bf4 {[%clk 0:02:07]}  e5 {[%clk 0:00:36]} 18. Bh6 {[%clk 0:02:05]}  Re8 {[%clk 0:00:36]} 19. Rd5 {[%clk 0:01:57]}  Ne6 {[%clk 0:00:29]} 20. Nh4 {[%clk 0:01:43]}  Nd4 {[%clk 0:00:21]} 21. h3 {[%clk 0:01:23]}  Be6 {[%clk 0:00:21]} 22. Rd6 {[%clk 0:01:10]}  Rec8 {[%clk 0:00:17]} 23. f4 {[%clk 0:01:06]}  Rd8 {[%clk 0:00:11]} 24. Ra6 {[%clk 0:00:52]}  Ne2+ {[%clk 0:00:07]} 25. Kh2 {[%clk 0:00:49]}  Nxf4 {[%clk 0:00:08]} 26. Bxf4 {[%clk 0:00:34]}  exf4 {[%clk 0:00:07]} 27. Ra4 {[%clk 0:00:34]}  a5 {[%clk 0:00:06]} 28. a3 {[%clk 0:00:33]}  b3 {[%clk 0:00:04]} 29. Rxf4 {[%clk 0:00:33]}  Rd2 {[%clk 0:00:04]} 30. Rf3 {[%clk 0:00:23]}  Rc8 {[%clk 0:00:04]} 31. Rg3+ {[%clk 0:00:24]}  Kf8 {[%clk 0:00:03]} 32. Rb1 {[%clk 0:00:23]}  Rcc2 {[%clk 0:00:03]} 33. Nf3 {[%clk 0:00:18]}  Rf2 {[%clk 0:00:03]} 34. Rd1 {[%clk 0:00:17]}  Rxb2 {[%clk 0:00:03]} 35. Rd8+ {[%clk 0:00:16]}  Ke7 {[%clk 0:00:02]} 36. Ra8 {[%clk 0:00:17]}  Rbc2 {[%clk 0:00:02]} 37. Ra7+ {[%clk 0:00:16]}  Kd6 {[%clk 0:00:02]} 38. Ra6+ {[%clk 0:00:15]}  Kc7 {[%clk 0:00:01]} 39. Rxa5 {[%clk 0:00:16]}  b2 {[%clk 0:00:01]} 40. Rb5 {[%clk 0:00:15]}  Rf1 {[%clk 0:00:01]} 41. Nd4 {[%clk 0:00:14]}  Rcf2 {[%clk 0:00:01]} 42. Nxe6+ {[%clk 0:00:13]}  fxe6 {[%clk 0:00:00]} 43. Rc3+ {[%clk 0:00:13]} 1-0

[Event "December 19 Early 2023"]
[Site "https://www.chess.com"]
[Date "2023.12.19"]
[Round "8"]
[White "Bushonica"]
[Black "Polak, Kinga"]
[Result "0-1"]
[Board "181"]
[TimeControl "180+1"]
[BlackFideId "1134680"]
[WhiteElo "1908"]
[BlackElo "2075"]
[BlackTeam "POL"]
[WhiteClock "0:01:18"]
[BlackClock "0:02:34"]

1. e4 {[%clk 0:02:57]}  c5 {[%clk 0:02:59]} 2. Nf3 {[%clk 0:02:53]}  Nc6 {[%clk 0:02:59]} 3. d4 {[%clk 0:02:53]}  cxd4 {[%clk 0:03:00]} 4. Nxd4 {[%clk 0:02:53]}  g6 {[%clk 0:03:00]} 5. Nc3 {[%clk 0:02:49]}  Bg7 {[%clk 0:02:58]} 6. Be3 {[%clk 0:02:48]}  Nf6 {[%clk 0:02:58]} 7. Bd3 {[%clk 0:02:44]}  O-O {[%clk 0:02:55]} 8. O-O {[%clk 0:02:43]}  d5 {[%clk 0:02:55]} 9. exd5 {[%clk 0:02:38]}  Nb4 {[%clk 0:02:54]} 10. a3 {[%clk 0:02:31]}  Nbxd5 {[%clk 0:02:53]} 11. Nxd5 {[%clk 0:02:28]}  Nxd5 {[%clk 0:02:54]} 12. c3 {[%clk 0:02:22]}  Nxe3 {[%clk 0:02:53]} 13. fxe3 {[%clk 0:02:22]}  e5 {[%clk 0:02:53]} 14. Nb3 {[%clk 0:02:19]}  Qb6 {[%clk 0:02:53]} 15. Re1 {[%clk 0:02:13]}  Be6 {[%clk 0:02:51]} 16. Bc2 {[%clk 0:02:12]}  Rad8 {[%clk 0:02:49]} 17. Nd2 {[%clk 0:02:08]}  Qxb2 {[%clk 0:02:46]} 18. a4 {[%clk 0:01:23]}  Qxc3 {[%clk 0:02:37]} 19. Re2 {[%clk 0:01:18]}  Bg4 {[%clk 0:02:34]} 0-1

[Event "December 19 Early 2023"]
[Site "https://www.chess.com"]
[Date "2023.12.19"]
[Round "8"]
[White "Donatti, Alvaro"]
[Black "Vargas, Mauricio"]
[Result "0-1"]
[Board "183"]
[TimeControl "180+1"]
[WhiteFideId "3000303"]
[BlackFideId "4404572"]
[WhiteElo "2138"]
[BlackElo "1982"]
[WhiteTeam "URU"]
[BlackTeam "COL"]
[WhiteClock "0:00:00"]
[BlackClock "0:00:08"]

1. e4 {[%clk 0:03:00]}  d5 {[%clk 0:02:58]} 2. d4 {[%clk 0:02:58]}  dxe4 {[%clk 0:02:58]} 3. Nc3 {[%clk 0:02:58]}  Nf6 {[%clk 0:02:58]} 4. Bg5 {[%clk 0:02:57]}  Nbd7 {[%clk 0:02:57]} 5. Bc4 {[%clk 0:02:50]}  e6 {[%clk 0:02:54]} 6. f3 {[%clk 0:02:49]}  h6 {[%clk 0:02:52]} 7. Bh4 {[%clk 0:02:46]}  g5 {[%clk 0:02:51]} 8. Bg3 {[%clk 0:02:46]}  exf3 {[%clk 0:02:51]} 9. Nxf3 {[%clk 0:02:45]}  Bd6 {[%clk 0:02:45]} 10. O-O {[%clk 0:02:33]}  Bxg3 {[%clk 0:02:44]} 11. hxg3 {[%clk 0:02:33]}  Qe7 {[%clk 0:02:37]} 12. Nb5 {[%clk 0:02:15]}  Nb6 {[%clk 0:02:32]} 13. Bb3 {[%clk 0:02:14]}  c6 {[%clk 0:02:31]} 14. Nc3 {[%clk 0:02:12]}  Bd7 {[%clk 0:02:29]} 15. Ne5 {[%clk 0:02:11]}  O-O-O {[%clk 0:02:24]} 16. a4 {[%clk 0:02:02]}  Rdf8 {[%clk 0:02:18]} 17. a5 {[%clk 0:02:01]}  Nbd5 {[%clk 0:02:17]} 18. a6 {[%clk 0:01:57]}  b6 {[%clk 0:02:00]} 19. Qf3 {[%clk 0:01:46]}  h5 {[%clk 0:01:48]} 20. Na4 {[%clk 0:01:25]}  Qb4 {[%clk 0:01:35]} 21. c4 {[%clk 0:01:16]}  g4 {[%clk 0:01:26]} 22. Qd3 {[%clk 0:01:09]}  Ne4 {[%clk 0:01:03]} 23. Nxd7 {[%clk 0:00:49]}  Kxd7 {[%clk 0:00:58]} 24. cxd5 {[%clk 0:00:40]}  Nd2 {[%clk 0:00:54]} 25. dxc6+ {[%clk 0:00:34]}  Kc7 {[%clk 0:00:51]} 26. Qe3 {[%clk 0:00:11]}  Nxf1 {[%clk 0:00:30]} 27. Rxf1 {[%clk 0:00:10]}  b5 {[%clk 0:00:22]} 28. Nc5 {[%clk 0:00:07]}  h4 {[%clk 0:00:13]} 29. Qe5+ {[%clk 0:00:05]}  Kxc6 {[%clk 0:00:12]} 30. d5+ {[%clk 0:00:04]}  exd5 {[%clk 0:00:09]} 31. Rf6+ {[%clk 0:00:00]}  Kxc5 {[%clk 0:00:08]} 0-1

[Event "December 19 Early 2023"]
[Site "https://www.chess.com"]
[Date "2023.12.19"]
[Round "8"]
[White "Floresvillar Gonzalez, Luis Migu"]
[Black "Viasus, Juan Diego"]
[Result "1-0"]
[Board "186"]
[TimeControl "180+1"]
[WhiteFideId "5100542"]
[BlackFideId "4464346"]
[WhiteElo "2040"]
[BlackElo "1644"]
[WhiteTeam "MEX"]
[BlackTeam "COL"]
[WhiteClock "0:01:37"]
[BlackClock "0:01:25"]

1. e4 {[%clk 0:03:00]}  c5 {[%clk 0:03:00]} 2. d4 {[%clk 0:02:58]}  cxd4 {[%clk 0:03:00]} 3. c3 {[%clk 0:02:57]}  d3 {[%clk 0:03:00]} 4. Bxd3 {[%clk 0:02:55]}  Nc6 {[%clk 0:03:01]} 5. Nf3 {[%clk 0:02:54]}  g6 {[%clk 0:03:01]} 6. h4 {[%clk 0:02:53]}  Bg7 {[%clk 0:03:01]} 7. h5 {[%clk 0:02:52]}  d6 {[%clk 0:02:57]} 8. hxg6 {[%clk 0:02:51]}  hxg6 {[%clk 0:02:57]} 9. Rxh8 {[%clk 0:02:50]}  Bxh8 {[%clk 0:02:58]} 10. Bg5 {[%clk 0:02:48]}  Bf6 {[%clk 0:02:53]} 11. Nbd2 {[%clk 0:02:44]}  e6 {[%clk 0:02:50]} 12. Bxf6 {[%clk 0:02:35]}  Nxf6 {[%clk 0:02:50]} 13. Qe2 {[%clk 0:02:24]}  d5 {[%clk 0:02:36]} 14. exd5 {[%clk 0:02:21]}  Qxd5 {[%clk 0:02:37]} 15. Bc4 {[%clk 0:02:11]}  Qd6 {[%clk 0:02:32]} 16. O-O-O {[%clk 0:02:08]}  Qc7 {[%clk 0:02:26]} 17. Ne4 {[%clk 0:02:00]}  Nxe4 {[%clk 0:02:24]} 18. Qxe4 {[%clk 0:01:59]}  Bd7 {[%clk 0:02:24]} 19. Ng5 {[%clk 0:01:50]}  Qa5 {[%clk 0:02:15]} 20. f4 {[%clk 0:01:42]}  Qf5 {[%clk 0:01:30]} 21. Qxf5 {[%clk 0:01:40]}  gxf5 {[%clk 0:01:27]} 22. Nxf7 {[%clk 0:01:39]}  Kxf7 {[%clk 0:01:25]} 23. Rxd7+ {[%clk 0:01:38]}  Ne7 {[%clk 0:01:25]} 24. Rxb7 {[%clk 0:01:37]} 1-0

[Event "December 19 Early 2023"]
[Site "https://www.chess.com"]
[Date "2023.12.19"]
[Round "9"]
[White "Carlsen, Magnus"]
[Black "Nihal Sarin"]
[Result "1-0"]
[Board "1"]
[TimeControl "180+1"]
[WhiteFideId "1503014"]
[BlackFideId "25092340"]
[WhiteElo "2887"]
[BlackElo "2689"]
[WhiteTeam "NOR"]
[BlackTeam "IND"]
[WhiteClock "0:01:23"]
[BlackClock "0:02:39"]

1. e4 {[%clk 0:02:15]}  g6 {[%clk 0:02:53]} 2. d4 {[%clk 0:02:01]}  Bg7 {[%clk 0:02:53]} 3. Nf3 {[%clk 0:02:02]}  d6 {[%clk 0:02:52]} 4. Bd3 {[%clk 0:01:59]}  Nc6 {[%clk 0:02:49]} 5. d5 {[%clk 0:01:55]}  e5 {[%clk 0:02:50]} 6. dxc6 {[%clk 0:01:55]}  bxc6 {[%clk 0:02:50]} 7. O-O {[%clk 0:01:54]}  Nf6 {[%clk 0:02:49]} 8. c4 {[%clk 0:01:54]}  O-O {[%clk 0:02:49]} 9. Nc3 {[%clk 0:01:54]}  Nd7 {[%clk 0:02:49]} 10. b4 {[%clk 0:01:46]}  a5 {[%clk 0:02:48]} 11. b5 {[%clk 0:01:46]}  Nc5 {[%clk 0:02:44]} 12. bxc6 {[%clk 0:01:45]}  Ra6 {[%clk 0:02:45]} 13. Be3 {[%clk 0:01:43]}  Rxc6 {[%clk 0:02:45]} 14. Rb1 {[%clk 0:01:43]}  f5 {[%clk 0:02:41]} 15. Bxc5 {[%clk 0:01:42]}  Rxc5 {[%clk 0:02:41]} 16. Rb5 {[%clk 0:01:41]}  c6 {[%clk 0:02:40]} 17. Rxc5 {[%clk 0:01:41]}  dxc5 {[%clk 0:02:41]} 18. Be2 {[%clk 0:01:30]}  Qe7 {[%clk 0:02:40]} 19. Qa4 {[%clk 0:01:30]}  Bd7 {[%clk 0:02:39]} 20. Qxa5 {[%clk 0:01:29]}  f4 {[%clk 0:02:39]} 21. Rd1 {[%clk 0:01:29]}  g5 {[%clk 0:02:40]} 22. Qc7 {[%clk 0:01:27]}  Rf7 {[%clk 0:02:40]} 23. Nxg5 {[%clk 0:01:23]}  Qxg5 {[%clk 0:02:40]} 24. Rxd7 {[%clk 0:01:23]}  f3 {[%clk 0:02:39]} 25. Qd8+ {[%clk 0:01:23]} 1-0

[Event "December 19 Early 2023"]
[Site "https://www.chess.com"]
[Date "2023.12.19"]
[Round "9"]
[White "Rasulov, Vugar"]
[Black "Nakamura, Hikaru"]
[Result "0-1"]
[Board "2"]
[TimeControl "180+1"]
[WhiteFideId "13402390"]
[BlackFideId "2016192"]
[WhiteElo "2517"]
[BlackElo "2874"]
[WhiteTeam "AZE"]
[BlackTeam "USA"]
[WhiteClock "0:00:00"]
[BlackClock "0:00:06"]

1. d4 {[%clk 0:03:00]}  d5 {[%clk 0:02:56]} 2. c4 {[%clk 0:03:01]}  c5 {[%clk 0:02:56]} 3. cxd5 {[%clk 0:02:59]}  Qxd5 {[%clk 0:02:56]} 4. Nf3 {[%clk 0:02:59]}  cxd4 {[%clk 0:02:56]} 5. Nc3 {[%clk 0:02:58]}  Qa5 {[%clk 0:02:56]} 6. Nxd4 {[%clk 0:02:58]}  Nf6 {[%clk 0:02:52]} 7. Bd2 {[%clk 0:02:56]}  Qd8 {[%clk 0:02:50]} 8. Bg5 {[%clk 0:02:49]}  e6 {[%clk 0:02:46]} 9. e3 {[%clk 0:02:47]}  Be7 {[%clk 0:02:45]} 10. Bb5+ {[%clk 0:02:41]}  Nbd7 {[%clk 0:02:44]} 11. O-O {[%clk 0:02:38]}  O-O {[%clk 0:02:40]} 12. Rc1 {[%clk 0:02:39]}  a6 {[%clk 0:02:40]} 13. Be2 {[%clk 0:02:38]}  Ne5 {[%clk 0:02:36]} 14. Bf4 {[%clk 0:02:33]}  Ng6 {[%clk 0:02:35]} 15. Bg3 {[%clk 0:02:34]}  e5 {[%clk 0:02:33]} 16. Nb3 {[%clk 0:02:30]}  Be6 {[%clk 0:02:28]} 17. Bf3 {[%clk 0:02:26]}  Qb8 {[%clk 0:02:23]} 18. Na5 {[%clk 0:02:19]}  Ra7 {[%clk 0:02:06]} 19. a3 {[%clk 0:02:13]}  Bd8 {[%clk 0:01:57]} 20. b4 {[%clk 0:02:10]}  Bxa5 {[%clk 0:01:56]} 21. bxa5 {[%clk 0:02:11]}  b5 {[%clk 0:01:56]} 22. axb6 {[%clk 0:02:06]}  Qxb6 {[%clk 0:01:56]} 23. Qa4 {[%clk 0:01:59]}  Rc7 {[%clk 0:01:49]} 24. Ne4 {[%clk 0:01:42]}  Nxe4 {[%clk 0:01:34]} 25. Bxe4 {[%clk 0:01:10]}  f5 {[%clk 0:01:28]} 26. Rxc7 {[%clk 0:01:05]}  Qxc7 {[%clk 0:01:29]} 27. Bd3 {[%clk 0:00:47]}  f4 {[%clk 0:01:29]} 28. Qxa6 {[%clk 0:00:29]}  Qf7 {[%clk 0:01:26]} 29. exf4 {[%clk 0:00:28]}  exf4 {[%clk 0:01:26]} 30. Qd6 {[%clk 0:00:12]}  fxg3 {[%clk 0:01:02]} 31. hxg3 {[%clk 0:00:13]}  Rc8 {[%clk 0:00:58]} 32. a4 {[%clk 0:00:13]}  Bc4 {[%clk 0:00:42]} 33. Rc1 {[%clk 0:00:10]}  Nf8 {[%clk 0:00:21]} 34. a5 {[%clk 0:00:10]}  Be6 {[%clk 0:00:17]} 35. Rxc8 {[%clk 0:00:11]}  Bxc8 {[%clk 0:00:18]} 36. a6 {[%clk 0:00:12]}  Qe6 {[%clk 0:00:10]} 37. Qxe6+ {[%clk 0:00:09]}  Nxe6 {[%clk 0:00:11]} 38. Be4 {[%clk 0:00:09]}  Bxa6 {[%clk 0:00:10]} 39. Bd5 {[%clk 0:00:10]}  Kf7 {[%clk 0:00:10]} 40. f3 {[%clk 0:00:08]}  Kf6 {[%clk 0:00:10]} 41. Kf2 {[%clk 0:00:08]}  Ke5 {[%clk 0:00:11]} 42. Bb3 {[%clk 0:00:08]}  Nc5 {[%clk 0:00:07]} 43. Ba2 {[%clk 0:00:08]}  Kd4 {[%clk 0:00:07]} 44. g4 {[%clk 0:00:08]}  g5 {[%clk 0:00:06]} 45. Bb1 {[%clk 0:00:06]}  h6 {[%clk 0:00:05]} 46. Kg3 {[%clk 0:00:05]}  Ke3 {[%clk 0:00:05]} 47. Ba2 {[%clk 0:00:05]}  Nd3 {[%clk 0:00:05]} 48. Bd5 {[%clk 0:00:05]}  Nf4 {[%clk 0:00:06]} 49. Bc6 {[%clk 0:00:00]}  Bf1 {[%clk 0:00:06]} 0-1

[Event "December 19 Early 2023"]
[Site "https://www.chess.com"]
[Date "2023.12.19"]
[Round "9"]
[White "Vokhidov, Shamsiddin"]
[Black "Kamsky, Gata"]
[Result "1-0"]
[Board "3"]
[TimeControl "180+1"]
[WhiteFideId "14204223"]
[BlackFideId "2000024"]
[WhiteElo "2588"]
[BlackElo "2660"]
[WhiteTeam "UZB"]
[BlackTeam "USA"]
[WhiteClock "0:00:21"]
[BlackClock "0:00:00"]

1. e4 {[%clk 0:03:00]}  e5 {[%clk 0:02:59]} 2. Nf3 {[%clk 0:03:01]}  Nc6 {[%clk 0:02:59]} 3. Bb5 {[%clk 0:03:01]}  Nf6 {[%clk 0:02:58]} 4. d3 {[%clk 0:03:01]}  d6 {[%clk 0:02:58]} 5. O-O {[%clk 0:03:00]}  Bd7 {[%clk 0:02:57]} 6. Re1 {[%clk 0:03:00]}  g6 {[%clk 0:02:57]} 7. d4 {[%clk 0:03:00]}  Bg7 {[%clk 0:02:53]} 8. Bxc6 {[%clk 0:02:59]}  Bxc6 {[%clk 0:02:53]} 9. dxe5 {[%clk 0:03:00]}  Nxe4 {[%clk 0:02:51]} 10. exd6 {[%clk 0:03:00]}  O-O {[%clk 0:02:51]} 11. dxc7 {[%clk 0:03:00]}  Qxc7 {[%clk 0:02:51]} 12. c3 {[%clk 0:03:00]}  Rad8 {[%clk 0:02:51]} 13. Qc2 {[%clk 0:02:57]}  Nc5 {[%clk 0:02:45]} 14. Nd4 {[%clk 0:02:53]}  Be4 {[%clk 0:02:34]} 15. Qe2 {[%clk 0:02:38]}  Bxb1 {[%clk 0:02:28]} 16. Rxb1 {[%clk 0:02:36]}  Bxd4 {[%clk 0:02:07]} 17. cxd4 {[%clk 0:02:35]}  Ne6 {[%clk 0:02:05]} 18. Bh6 {[%clk 0:02:33]}  Rfe8 {[%clk 0:01:54]} 19. Qf3 {[%clk 0:02:26]}  Nxd4 {[%clk 0:01:44]} 20. Qf6 {[%clk 0:02:21]}  Nf5 {[%clk 0:01:44]} 21. Bg5 {[%clk 0:02:13]}  h6 {[%clk 0:01:41]} 22. Bd2 {[%clk 0:02:05]}  Qb6 {[%clk 0:01:15]} 23. Rxe8+ {[%clk 0:02:03]}  Rxe8 {[%clk 0:01:15]} 24. Qxb6 {[%clk 0:02:04]}  axb6 {[%clk 0:01:15]} 25. Kf1 {[%clk 0:01:57]}  h5 {[%clk 0:01:12]} 26. Rc1 {[%clk 0:01:55]}  Rd8 {[%clk 0:01:02]} 27. Bg5 {[%clk 0:01:55]}  Rd6 {[%clk 0:00:44]} 28. Rc7 {[%clk 0:01:54]}  f6 {[%clk 0:00:44]} 29. Bf4 {[%clk 0:01:45]}  Rd4 {[%clk 0:00:44]} 30. Bc1 {[%clk 0:01:40]}  b5 {[%clk 0:00:38]} 31. Ke2 {[%clk 0:01:36]}  Re4+ {[%clk 0:00:35]} 32. Kd3 {[%clk 0:01:33]}  Rg4 {[%clk 0:00:34]} 33. g3 {[%clk 0:01:30]}  Rd4+ {[%clk 0:00:33]} 34. Kc3 {[%clk 0:01:26]}  Rd1 {[%clk 0:00:27]} 35. Kb4 {[%clk 0:01:22]}  Rf1 {[%clk 0:00:14]} 36. Rc2 {[%clk 0:01:21]}  Nd4 {[%clk 0:00:14]} 37. Rc8+ {[%clk 0:01:21]}  Kf7 {[%clk 0:00:14]} 38. Be3 {[%clk 0:01:19]}  Nf5 {[%clk 0:00:14]} 39. Bc5 {[%clk 0:01:13]}  Rc1 {[%clk 0:00:13]} 40. Rc7+ {[%clk 0:01:11]}  Ke6 {[%clk 0:00:13]} 41. Rxb7 {[%clk 0:01:08]}  Kd5 {[%clk 0:00:13]} 42. Ba7 {[%clk 0:00:59]}  Nd6 {[%clk 0:00:12]} 43. Rg7 {[%clk 0:00:57]}  g5 {[%clk 0:00:11]} 44. Bb8 {[%clk 0:00:55]}  Rc4+ {[%clk 0:00:10]} 45. Kb3 {[%clk 0:00:54]}  Ne4 {[%clk 0:00:10]} 46. a3 {[%clk 0:00:37]}  Nxf2 {[%clk 0:00:10]} 47. Rb7 {[%clk 0:00:36]}  Kc6 {[%clk 0:00:09]} 48. Rc7+ {[%clk 0:00:36]}  Kd5 {[%clk 0:00:10]} 49. Rd7+ {[%clk 0:00:35]}  Ke6 {[%clk 0:00:08]} 50. Rb7 {[%clk 0:00:33]}  Ne4 {[%clk 0:00:07]} 51. Rb6+ {[%clk 0:00:33]}  Kd7 {[%clk 0:00:06]} 52. Rxb5 {[%clk 0:00:32]}  Rc1 {[%clk 0:00:06]} 53. Rb4 {[%clk 0:00:27]}  Nc5+ {[%clk 0:00:05]} 54. Ka2 {[%clk 0:00:27]}  Kc6 {[%clk 0:00:06]} 55. Rd4 {[%clk 0:00:25]}  Rc2 {[%clk 0:00:05]} 56. h4 {[%clk 0:00:23]}  gxh4 {[%clk 0:00:04]} 57. gxh4 {[%clk 0:00:24]}  Ne6 {[%clk 0:00:03]} 58. Rd6+ {[%clk 0:00:24]}  Kb7 {[%clk 0:00:04]} 59. Rxe6 {[%clk 0:00:25]}  Kxb8 {[%clk 0:00:04]} 60. Rxf6 {[%clk 0:00:25]}  Rc4 {[%clk 0:00:04]} 61. Rh6 {[%clk 0:00:25]}  Rxh4 {[%clk 0:00:04]} 62. Rh7 {[%clk 0:00:25]}  Rh3 {[%clk 0:00:04]} 63. a4 {[%clk 0:00:25]}  h4 {[%clk 0:00:04]} 64. b3 {[%clk 0:00:25]}  Rh1 {[%clk 0:00:03]} 65. Ka3 {[%clk 0:00:25]}  h3 {[%clk 0:00:04]} 66. Kb4 {[%clk 0:00:25]}  Kc8 {[%clk 0:00:04]} 67. Kb5 {[%clk 0:00:22]}  h2 {[%clk 0:00:03]} 68. b4 {[%clk 0:00:21]}  Kd8 {[%clk 0:00:00]} 69. a5 {[%clk 0:00:21]} 1-0

[Event "December 19 Early 2023"]
[Site "https://www.chess.com"]
[Date "2023.12.19"]
[Round "9"]
[White "Chigaev, Maksim"]
[Black "Kovalev, Vladislav"]
[Result "0-1"]
[Board "4"]
[TimeControl "180+1"]
[WhiteFideId "4108116"]
[BlackFideId "13504398"]
[WhiteElo "2561"]
[BlackElo "2539"]
[WhiteTeam "ESP"]
[BlackTeam "FID"]
[WhiteClock "0:00:02"]
[BlackClock "0:00:03"]

1. d4 {[%clk 0:03:00]}  Nf6 {[%clk 0:03:00]} 2. c4 {[%clk 0:03:01]}  e6 {[%clk 0:03:00]} 3. g3 {[%clk 0:03:01]}  d5 {[%clk 0:03:00]} 4. Bg2 {[%clk 0:03:02]}  dxc4 {[%clk 0:03:00]} 5. Nf3 {[%clk 0:03:02]}  Bb4+ {[%clk 0:03:01]} 6. Nbd2 {[%clk 0:03:00]}  O-O {[%clk 0:02:50]} 7. Qc2 {[%clk 0:02:59]}  a5 {[%clk 0:02:26]} 8. a3 {[%clk 0:02:55]}  Bxd2+ {[%clk 0:02:25]} 9. Bxd2 {[%clk 0:02:56]}  b5 {[%clk 0:02:20]} 10. a4 {[%clk 0:02:56]}  c6 {[%clk 0:02:03]} 11. h4 {[%clk 0:02:56]}  Nbd7 {[%clk 0:01:19]} 12. h5 {[%clk 0:02:29]}  h6 {[%clk 0:01:07]} 13. g4 {[%clk 0:02:25]}  Nxg4 {[%clk 0:01:01]} 14. axb5 {[%clk 0:02:24]}  cxb5 {[%clk 0:00:47]} 15. Ng5 {[%clk 0:02:21]}  hxg5 {[%clk 0:00:47]} 16. Bxa8 {[%clk 0:02:21]}  a4 {[%clk 0:00:44]} 17. Bf3 {[%clk 0:02:14]}  Nh6 {[%clk 0:00:38]} 18. Rg1 {[%clk 0:02:01]}  f6 {[%clk 0:00:39]} 19. Bb4 {[%clk 0:01:58]}  Re8 {[%clk 0:00:38]} 20. O-O-O {[%clk 0:01:58]}  Qb6 {[%clk 0:00:31]} 21. Qg6 {[%clk 0:01:50]}  Rd8 {[%clk 0:00:30]} 22. Be7 {[%clk 0:01:41]}  Nf8 {[%clk 0:00:31]} 23. Bxd8 {[%clk 0:01:40]}  Qxd8 {[%clk 0:00:31]} 24. Qc2 {[%clk 0:01:40]}  Qd6 {[%clk 0:00:21]} 25. e3 {[%clk 0:01:25]}  Bd7 {[%clk 0:00:20]} 26. Qc3 {[%clk 0:01:21]}  Nf5 {[%clk 0:00:16]} 27. Be4 {[%clk 0:01:13]}  Ne7 {[%clk 0:00:13]} 28. Rh1 {[%clk 0:01:05]}  Nd5 {[%clk 0:00:13]} 29. Bxd5 {[%clk 0:01:01]}  exd5 {[%clk 0:00:14]} 30. h6 {[%clk 0:01:01]}  Bf5 {[%clk 0:00:14]} 31. hxg7 {[%clk 0:00:55]}  Kxg7 {[%clk 0:00:15]} 32. Qa5 {[%clk 0:00:54]}  Qd7 {[%clk 0:00:10]} 33. Rh2 {[%clk 0:00:44]}  Bg6 {[%clk 0:00:10]} 34. Rdh1 {[%clk 0:00:37]}  Qf5 {[%clk 0:00:05]} 35. Qc7+ {[%clk 0:00:37]}  Nd7 {[%clk 0:00:06]} 36. e4 {[%clk 0:00:30]}  dxe4 {[%clk 0:00:07]} 37. Qd8 {[%clk 0:00:21]}  e3 {[%clk 0:00:04]} 38. Qh8+ {[%clk 0:00:20]}  Kf7 {[%clk 0:00:04]} 39. Rh7+ {[%clk 0:00:21]}  Ke6 {[%clk 0:00:02]} 40. Qg8+ {[%clk 0:00:15]}  Kd6 {[%clk 0:00:03]} 41. Rxd7+ {[%clk 0:00:07]}  Kxd7 {[%clk 0:00:04]} 42. Qg7+ {[%clk 0:00:07]}  Kc6 {[%clk 0:00:04]} 43. d5+ {[%clk 0:00:02]}  Kb6 {[%clk 0:00:03]} 0-1

[Event "December 19 Early 2023"]
[Site "https://www.chess.com"]
[Date "2023.12.19"]
[Round "9"]
[White "Beerdsen, Thomas"]
[Black "Suleymanli, Aydin"]
[Result "0-1"]
[Board "5"]
[TimeControl "180+1"]
[WhiteFideId "1030108"]
[BlackFideId "13413937"]
[WhiteElo "2550"]
[BlackElo "2553"]
[WhiteTeam "NED"]
[BlackTeam "AZE"]
[WhiteClock "0:00:45"]
[BlackClock "0:00:21"]

1. e4 {[%clk 0:03:00]}  c5 {[%clk 0:02:59]} 2. Nf3 {[%clk 0:03:00]}  e6 {[%clk 0:03:00]} 3. d4 {[%clk 0:03:01]}  cxd4 {[%clk 0:03:01]} 4. Bg5 {[%clk 0:03:01]}  Qa5+ {[%clk 0:02:54]} 5. c3 {[%clk 0:03:01]}  dxc3 {[%clk 0:02:45]} 6. Nxc3 {[%clk 0:03:02]}  Nc6 {[%clk 0:02:38]} 7. Bd3 {[%clk 0:03:02]}  Nf6 {[%clk 0:02:36]} 8. O-O {[%clk 0:03:02]}  Be7 {[%clk 0:02:30]} 9. Qe2 {[%clk 0:02:57]}  d6 {[%clk 0:02:27]} 10. a3 {[%clk 0:02:57]}  Nd4 {[%clk 0:02:00]} 11. Bb5+ {[%clk 0:02:38]}  Nxb5 {[%clk 0:01:54]} 12. Nxb5 {[%clk 0:02:38]}  a6 {[%clk 0:01:44]} 13. Bxf6 {[%clk 0:02:24]}  gxf6 {[%clk 0:01:42]} 14. Nbd4 {[%clk 0:02:19]}  Rg8 {[%clk 0:01:36]} 15. Rac1 {[%clk 0:02:14]}  Bd7 {[%clk 0:01:25]} 16. Rfd1 {[%clk 0:02:05]}  Rc8 {[%clk 0:01:13]} 17. Rxc8+ {[%clk 0:02:00]}  Bxc8 {[%clk 0:01:14]} 18. Rc1 {[%clk 0:02:00]}  Bd7 {[%clk 0:01:14]} 19. g3 {[%clk 0:01:58]}  Bd8 {[%clk 0:01:14]} 20. Qe3 {[%clk 0:01:51]}  Bb6 {[%clk 0:01:06]} 21. Qh6 {[%clk 0:01:51]}  Bxd4 {[%clk 0:00:46]} 22. Nxd4 {[%clk 0:01:45]}  Qg5 {[%clk 0:00:46]} 23. Qxg5 {[%clk 0:01:46]}  Rxg5 {[%clk 0:00:46]} 24. Rc7 {[%clk 0:01:46]}  Rc5 {[%clk 0:00:40]} 25. Rxb7 {[%clk 0:01:44]}  Rc4 {[%clk 0:00:40]} 26. Ne2 {[%clk 0:01:31]}  Rxe4 {[%clk 0:00:37]} 27. Rb8+ {[%clk 0:01:30]}  Ke7 {[%clk 0:00:37]} 28. Nc3 {[%clk 0:01:31]}  Re1+ {[%clk 0:00:36]} 29. Kg2 {[%clk 0:01:31]}  Bc6+ {[%clk 0:00:37]} 30. Kh3 {[%clk 0:01:31]}  Bf3 {[%clk 0:00:31]} 31. g4 {[%clk 0:01:17]}  Rg1 {[%clk 0:00:27]} 32. Rb4 {[%clk 0:01:18]}  e5 {[%clk 0:00:25]} 33. Kh4 {[%clk 0:01:12]}  d5 {[%clk 0:00:25]} 34. h3 {[%clk 0:01:05]}  d4 {[%clk 0:00:25]} 35. Na4 {[%clk 0:01:01]}  d3 {[%clk 0:00:23]} 36. Nc3 {[%clk 0:00:52]}  d2 {[%clk 0:00:22]} 37. Rb6 {[%clk 0:00:45]}  Rc1 {[%clk 0:00:21]} 0-1